[Event "*** Titled Tuesday Blitz"]
[Site "Chess.com"]
[Date "2020.12.29"]
[Round "4"]
[White "Keks2017"]
[Black "Vaathi_Coming"]
[Result "0-1"]
[WhiteElo "2566"]
[BlackElo "2842"]
[TimeControl "180+1"]
[EndTime "10:38:45 PST"]
[Termination "Vaathi_Coming won by resignation"]

1. g3 {[%clk 0:03:00.1]} 1... Nf6 {[%clk 0:02:58.9]} 2. Bg2 {[%clk 0:02:59.9]}
2... d5 {[%clk 0:02:59.1]} 3. d3 {[%clk 0:02:59.1]} 3... g6 {[%clk 0:02:59.3]}
4. Nf3 {[%clk 0:02:58.5]} 4... Bg7 {[%clk 0:02:59.8]} 5. O-O {[%clk 0:02:58.5]}
5... O-O {[%clk 0:03:00.7]} 6. Nbd2 {[%clk 0:02:58.4]} 6... a5 {[%clk
0:02:58.9]} 7. e4 {[%clk 0:02:58]} 7... dxe4 {[%clk 0:02:57.9]} 8. dxe4 {[%clk
0:02:57.6]} 8... a4 {[%clk 0:02:57.9]} 9. a3 {[%clk 0:02:57.5]} 9... Nc6 {[%clk
0:02:55.4]} 10. Re1 {[%clk 0:02:55.9]} 10... Nd7 {[%clk 0:02:51.7]} 11. Qe2
{[%clk 0:02:40.9]} 11... b6 {[%clk 0:02:15.3]} 12. Rd1 {[%clk 0:02:40.2]} 12...
Ba6 {[%clk 0:02:14.6]} 13. Qe1 {[%clk 0:02:39.9]} 13... Qc8 {[%clk 0:02:14]} 14.
Nf1 {[%clk 0:02:36.3]} 14... Rd8 {[%clk 0:01:57.6]} 15. Rb1 {[%clk 0:02:35.8]}
15... Nde5 {[%clk 0:01:47.1]} 16. Nxe5 {[%clk 0:02:33]} 16... Bxe5 {[%clk
0:01:48]} 17. Ne3 {[%clk 0:02:18.9]} 17... Nd4 {[%clk 0:01:45.8]} 18. Nd5 {[%clk
0:02:09.4]} 18... Rd7 {[%clk 0:01:37.6]} 19. Bg5 {[%clk 0:01:57.5]} 19... f6
{[%clk 0:01:28.8]} 20. Be3 {[%clk 0:01:57]} 20... Nxc2 {[%clk 0:01:23]} 21. Qd2
{[%clk 0:01:56.5]} 21... Nxe3 {[%clk 0:01:21.4]} 22. Qxe3 {[%clk 0:01:49.7]}
22... Qd8 {[%clk 0:01:03.4]} 23. Rdc1 {[%clk 0:01:28.7]} 23... e6 {[%clk
0:00:58.4]} 24. Nb4 {[%clk 0:01:28.3]} 24... Bb7 {[%clk 0:00:57.2]} 25. Qe2
{[%clk 0:01:16.1]} 25... c5 {[%clk 0:00:54.2]} 26. Nc2 {[%clk 0:01:12.7]} 26...
Rd2 {[%clk 0:00:52.7]} 27. Qc4 {[%clk 0:01:12.5]} 27... Qd7 {[%clk 0:00:44.1]}
28. Qf1 {[%clk 0:00:51.3]} 28... Rd8 {[%clk 0:00:41.7]} 29. Ne3 {[%clk
0:00:49.4]} 29... Bd4 {[%clk 0:00:33.5]} 30. Qe1 {[%clk 0:00:49]} 30... Rxb2
{[%clk 0:00:23.1]} 31. Rxb2 {[%clk 0:00:47.9]} 31... Bxb2 {[%clk 0:00:24]} 32.
Rb1 {[%clk 0:00:47.8]} 32... Bxa3 {[%clk 0:00:15.8]} 33. Rxb6 {[%clk 0:00:47.2]}
33... Bb4 {[%clk 0:00:15.6]} 34. Qb1 {[%clk 0:00:41.5]} 34... a3 {[%clk
0:00:15.5]} 35. Ng4 {[%clk 0:00:41]} 35... Qd1+ {[%clk 0:00:13.7]} 36. Qxd1
{[%clk 0:00:40.3]} 36... Rxd1+ {[%clk 0:00:14.6]} 37. Bf1 {[%clk 0:00:40.5]}
37... a2 {[%clk 0:00:12]} 38. Nxf6+ {[%clk 0:00:33.8]} 38... Kf7 {[%clk
0:00:11.6]} 39. Rxb7+ {[%clk 0:00:33.8]} 39... Kxf6 {[%clk 0:00:11.9]} 0-1

[Event "*** Titled Tuesday Blitz"]
[Site "Chess.com"]
[Date "2020.12.29"]
[Round "4"]
[White "ambaixador"]
[Black "Aslanov_Umid"]
[Result "0-1"]
[WhiteElo "2415"]
[BlackElo "2262"]
[TimeControl "180+1"]
[EndTime "10:38:48 PST"]
[Termination "Aslanov_Umid won by resignation"]

1. e4 {[%clk 0:03:00.9]} 1... c5 {[%clk 0:02:59.9]} 2. Nf3 {[%clk 0:03:01]} 2...
d6 {[%clk 0:03:00.3]} 3. d4 {[%clk 0:03:01]} 3... cxd4 {[%clk 0:03:01.2]} 4.
Nxd4 {[%clk 0:03:01.9]} 4... Nf6 {[%clk 0:03:01.1]} 5. Nc3 {[%clk 0:03:02.1]}
5... a6 {[%clk 0:03:01.5]} 6. Bg5 {[%clk 0:03:02]} 6... e6 {[%clk 0:03:00.2]} 7.
f4 {[%clk 0:03:01.8]} 7... Nbd7 {[%clk 0:03:00.6]} 8. Qf3 {[%clk 0:03:01.3]}
8... Qc7 {[%clk 0:03:00.3]} 9. O-O-O {[%clk 0:03:01.1]} 9... b5 {[%clk 0:02:58]}
10. Bd3 {[%clk 0:03:00.9]} 10... Bb7 {[%clk 0:02:56.9]} 11. Rhe1 {[%clk
0:03:00.4]} 11... Be7 {[%clk 0:02:55.5]} 12. g4 {[%clk 0:02:46.7]} 12... b4
{[%clk 0:02:49.1]} 13. Nd5 {[%clk 0:02:42.4]} 13... exd5 {[%clk 0:02:48.9]} 14.
exd5 {[%clk 0:02:41.3]} 14... Kf8 {[%clk 0:02:43.2]} 15. Nf5 {[%clk 0:02:37.8]}
15... Bd8 {[%clk 0:02:24.5]} 16. Qh3 {[%clk 0:01:22.8]} 16... Nxd5 {[%clk
0:02:13]} 17. Nxg7 {[%clk 0:01:10.8]} 17... Bxg5 {[%clk 0:02:09.7]} 18. fxg5
{[%clk 0:01:11.7]} 18... Kxg7 {[%clk 0:02:02.4]} 19. Qh6+ {[%clk 0:01:10.8]}
19... Kg8 {[%clk 0:02:01.8]} 20. Bf5 {[%clk 0:00:51.4]} 20... Ne5 {[%clk
0:01:32.7]} 21. Re2 {[%clk 0:00:42.3]} 21... Qc4 {[%clk 0:00:44]} 22. Re4 {[%clk
0:00:30.3]} 22... Qc7 {[%clk 0:00:34]} 23. Qh3 {[%clk 0:00:19.4]} 23... Nc3
{[%clk 0:00:17.6]} 24. bxc3 {[%clk 0:00:18.8]} 24... Bxe4 {[%clk 0:00:17.6]} 25.
Bxe4 {[%clk 0:00:17.7]} 25... Rb8 {[%clk 0:00:18]} 26. cxb4 {[%clk 0:00:13.2]}
26... Rxb4 {[%clk 0:00:18.9]} 27. Qa3 {[%clk 0:00:12.8]} 27... Rxe4 {[%clk
0:00:18]} 28. Rxd6 {[%clk 0:00:12]} 28... Re1+ {[%clk 0:00:16.7]} 29. Kd2 {[%clk
0:00:11.9]} 29... Nc4+ {[%clk 0:00:17.2]} 30. Kxe1 {[%clk 0:00:12.1]} 30... Nxa3
{[%clk 0:00:18.1]} 31. Rxa6 {[%clk 0:00:12]} 31... Qe5+ {[%clk 0:00:17.1]} 32.
Kf2 {[%clk 0:00:11.6]} 32... Kg7 {[%clk 0:00:17.2]} 0-1

[Event "*** Titled Tuesday Blitz"]
[Site "Chess.com"]
[Date "2020.12.29"]
[Round "4"]
[White "AlexeiShirov"]
[Black "ftorodent"]
[Result "1-0"]
[WhiteElo "2831"]
[BlackElo "2638"]
[TimeControl "180+1"]
[EndTime "10:38:50 PST"]
[Termination "AlexeiShirov won on time"]

1. e4 {[%clk 0:03:00.9]} 1... e6 {[%clk 0:03:00.1]} 2. d4 {[%clk 0:03:00.3]}
2... d5 {[%clk 0:03:00.2]} 3. e5 {[%clk 0:03:00.5]} 3... c5 {[%clk 0:02:59.8]}
4. c3 {[%clk 0:03:00.5]} 4... Qb6 {[%clk 0:02:59.9]} 5. Nf3 {[%clk 0:02:59.8]}
5... Nc6 {[%clk 0:03:00]} 6. Be2 {[%clk 0:02:58.8]} 6... Nh6 {[%clk 0:02:56.8]}
7. Bxh6 {[%clk 0:02:57.1]} 7... gxh6 {[%clk 0:02:53.9]} 8. Qd2 {[%clk
0:02:56.4]} 8... Bd7 {[%clk 0:02:46.5]} 9. O-O {[%clk 0:02:54.6]} 9... Rc8
{[%clk 0:02:43.9]} 10. Na3 {[%clk 0:02:44.3]} 10... cxd4 {[%clk 0:02:43.5]} 11.
cxd4 {[%clk 0:02:43.2]} 11... Bg7 {[%clk 0:02:42.3]} 12. Nc2 {[%clk 0:02:25.7]}
12... O-O {[%clk 0:02:40.9]} 13. Ne3 {[%clk 0:02:25.5]} 13... h5 {[%clk
0:02:00.6]} 14. Rfd1 {[%clk 0:01:52.3]} 14... f6 {[%clk 0:02:00.1]} 15. exf6
{[%clk 0:01:49.4]} 15... Rxf6 {[%clk 0:01:58.5]} 16. Rac1 {[%clk 0:01:43.6]}
16... Rcf8 {[%clk 0:01:49.8]} 17. Rc3 {[%clk 0:01:42.7]} 17... Rf4 {[%clk
0:01:40.3]} 18. Rb3 {[%clk 0:01:35.3]} 18... Qc7 {[%clk 0:01:34.2]} 19. Nc2
{[%clk 0:01:29.3]} 19... Be8 {[%clk 0:01:25.2]} 20. Bb5 {[%clk 0:01:22.9]} 20...
Bg6 {[%clk 0:00:54.3]} 21. Bxc6 {[%clk 0:01:21.6]} 21... bxc6 {[%clk 0:00:50.8]}
22. Nce1 {[%clk 0:01:20.5]} 22... c5 {[%clk 0:00:46]} 23. dxc5 {[%clk
0:01:18.8]} 23... Qxc5 {[%clk 0:00:44.8]} 24. Rc1 {[%clk 0:01:18.6]} 24... Qd6
{[%clk 0:00:37.3]} 25. Rb7 {[%clk 0:01:14.8]} 25... Be4 {[%clk 0:00:31.6]} 26.
Rcc7 {[%clk 0:01:11.2]} 26... Bh6 {[%clk 0:00:23.8]} 27. Qd4 {[%clk 0:01:10.1]}
27... e5 {[%clk 0:00:17.6]} 28. Qxa7 {[%clk 0:01:09.4]} 28... Qg6 {[%clk
0:00:15]} 29. Nxe5 {[%clk 0:00:59.7]} 29... Rxf2 {[%clk 0:00:14.5]} 30. Qxf2
{[%clk 0:00:57.3]} 30... Rxf2 {[%clk 0:00:14.3]} 31. Rc8+ {[%clk 0:00:52.5]}
31... Rf8 {[%clk 0:00:08.7]} 32. Rxf8+ {[%clk 0:00:52]} 32... Bxf8 {[%clk
0:00:09]} 33. Nxg6 {[%clk 0:00:51.8]} 33... hxg6 {[%clk 0:00:09.6]} 34. Kf2
{[%clk 0:00:48.3]} 34... Bc5+ {[%clk 0:00:09.1]} 35. Ke2 {[%clk 0:00:48]} 35...
d4 {[%clk 0:00:08.7]} 36. Rb5 {[%clk 0:00:46.8]} 36... Bd6 {[%clk 0:00:06.3]}
37. Nf3 {[%clk 0:00:45.9]} 37... Bf4 {[%clk 0:00:04.1]} 38. Nxd4 {[%clk
0:00:44.4]} 38... Bxh2 {[%clk 0:00:04.2]} 39. Nf3 {[%clk 0:00:42.2]} 39... Bf4
{[%clk 0:00:03.4]} 40. a4 {[%clk 0:00:41.1]} 40... g5 {[%clk 0:00:01.7]} 41.
Nxg5 {[%clk 0:00:39.3]} 41... Bxg2 {[%clk 0:00:01.9]} 42. Nf3 {[%clk 0:00:38.4]}
1-0

[Event "*** Titled Tuesday Blitz"]
[Site "Chess.com"]
[Date "2020.12.29"]
[Round "4"]
[White "Skat2704"]
[Black "SamuelGhimpu2003"]
[Result "0-1"]
[WhiteElo "2375"]
[BlackElo "2609"]
[TimeControl "180+1"]
[EndTime "10:38:50 PST"]
[Termination "SamuelGhimpu2003 won by resignation"]

1. d4 {[%clk 0:03:00.9]} 1... Nf6 {[%clk 0:02:57.7]} 2. c4 {[%clk 0:03:00.7]}
2... g6 {[%clk 0:02:57.1]} 3. Nc3 {[%clk 0:03:00.4]} 3... d5 {[%clk 0:02:57.3]}
4. e3 {[%clk 0:03:00]} 4... Bg7 {[%clk 0:02:56.9]} 5. Nf3 {[%clk 0:03:00.1]}
5... O-O {[%clk 0:02:56.4]} 6. cxd5 {[%clk 0:03:00.1]} 6... Nxd5 {[%clk
0:02:57.3]} 7. Bc4 {[%clk 0:03:00.9]} 7... Nb6 {[%clk 0:02:49.1]} 8. Bb3 {[%clk
0:03:00.4]} 8... c5 {[%clk 0:02:49.4]} 9. O-O {[%clk 0:02:59.9]} 9... c4 {[%clk
0:02:44.2]} 10. Bc2 {[%clk 0:02:58.9]} 10... Nc6 {[%clk 0:02:44.8]} 11. h3
{[%clk 0:02:55.8]} 11... e5 {[%clk 0:02:17.9]} 12. dxe5 {[%clk 0:02:50.9]} 12...
Nxe5 {[%clk 0:02:18.8]} 13. Nxe5 {[%clk 0:02:51.2]} 13... Bxe5 {[%clk
0:02:19.7]} 14. Qe2 {[%clk 0:02:50.6]} 14... Re8 {[%clk 0:02:00.6]} 15. Rd1
{[%clk 0:02:46.8]} 15... Qf6 {[%clk 0:01:55.4]} 16. Ne4 {[%clk 0:02:43.9]} 16...
Qe7 {[%clk 0:01:54.8]} 17. Rb1 {[%clk 0:02:36.3]} 17... Bf5 {[%clk 0:01:53.4]}
18. Nc3 {[%clk 0:02:32.8]} 18... Be6 {[%clk 0:01:16.6]} 19. f4 {[%clk 0:02:26]}
19... Bxc3 {[%clk 0:00:46.9]} 20. bxc3 {[%clk 0:02:25.1]} 20... Bd5 {[%clk
0:00:47.5]} 21. Rxb6 {[%clk 0:02:17.8]} 21... axb6 {[%clk 0:00:44.5]} 22. Rxd5
{[%clk 0:02:17.1]} 22... Rxa2 {[%clk 0:00:45.2]} 23. Qd1 {[%clk 0:02:05.6]}
23... Ra1 {[%clk 0:00:44.2]} 24. Kh2 {[%clk 0:01:47.9]} 24... Qf6 {[%clk
0:00:42]} 25. Qd2 {[%clk 0:01:45.4]} 25... Rea8 {[%clk 0:00:25.8]} 26. Bb2
{[%clk 0:01:36.3]} 26... R1a2 {[%clk 0:00:25.1]} 27. Qc1 {[%clk 0:01:32.6]}
27... Qe6 {[%clk 0:00:19.6]} 28. Re5 {[%clk 0:01:31.2]} 28... Qd6 {[%clk
0:00:19.9]} 29. Be4 {[%clk 0:01:28.4]} 29... Rd8 {[%clk 0:00:17.8]} 30. Qb1
{[%clk 0:01:25.7]} 30... Ra5 {[%clk 0:00:14.9]} 31. Rxa5 {[%clk 0:01:22]} 31...
bxa5 {[%clk 0:00:15.8]} 32. Qc1 {[%clk 0:01:15.9]} 32... b5 {[%clk 0:00:15.2]}
33. Qc2 {[%clk 0:01:09.7]} 33... Qd2 {[%clk 0:00:14.9]} 34. Qxd2 {[%clk
0:01:08.8]} 34... Rxd2 {[%clk 0:00:15.8]} 35. Bc1 {[%clk 0:01:08.6]} 35... Rd1
{[%clk 0:00:15.5]} 36. Ba3 {[%clk 0:01:07.6]} 36... Ra1 {[%clk 0:00:15.7]} 37.
Bc5 {[%clk 0:01:07.1]} 37... Rc1 {[%clk 0:00:15.4]} 38. Bc6 {[%clk 0:01:03.2]}
38... Rb1 {[%clk 0:00:14.8]} 39. Bd5 {[%clk 0:01:00.2]} 39... Rb3 {[%clk
0:00:15]} 40. Bd4 {[%clk 0:00:58.8]} 40... a4 {[%clk 0:00:15.6]} 41. Bc5 {[%clk
0:00:56.1]} 41... a3 {[%clk 0:00:15]} 42. Bxa3 {[%clk 0:00:55.8]} 42... Rxa3
{[%clk 0:00:15.9]} 43. Bc6 {[%clk 0:00:54.9]} 43... Rb3 {[%clk 0:00:15.6]} 44.
Kg3 {[%clk 0:00:53.3]} 44... b4 {[%clk 0:00:15.7]} 45. cxb4 {[%clk 0:00:53]}
45... c3 {[%clk 0:00:16.4]} 46. Be4 {[%clk 0:00:52.3]} 46... Rxb4 {[%clk
0:00:16.7]} 47. Bd3 {[%clk 0:00:51.9]} 47... Rb2 {[%clk 0:00:16.4]} 48. e4
{[%clk 0:00:50.5]} 48... c2 {[%clk 0:00:16.9]} 0-1

[Event "*** Titled Tuesday Blitz"]
[Site "Chess.com"]
[Date "2020.12.29"]
[Round "4"]
[White "goldenpuppy"]
[Black "tlomigtlis"]
[Result "1-0"]
[WhiteElo "2365"]
[BlackElo "2529"]
[TimeControl "180+1"]
[EndTime "10:38:50 PST"]
[Termination "goldenpuppy won by checkmate"]

1. e4 {[%clk 0:03:00.9]} 1... c5 {[%clk 0:03:00.2]} 2. Nf3 {[%clk 0:03:00.4]}
2... d6 {[%clk 0:03:00.6]} 3. d4 {[%clk 0:03:00.9]} 3... cxd4 {[%clk 0:03:01.5]}
4. Nxd4 {[%clk 0:03:01.1]} 4... Nf6 {[%clk 0:02:59.9]} 5. Nc3 {[%clk 0:03:01.4]}
5... a6 {[%clk 0:02:59.2]} 6. Be3 {[%clk 0:03:01.6]} 6... e5 {[%clk 0:02:59]} 7.
Nf3 {[%clk 0:03:02]} 7... Be7 {[%clk 0:02:56.7]} 8. Bc4 {[%clk 0:03:02.2]} 8...
O-O {[%clk 0:02:56.7]} 9. O-O {[%clk 0:03:02.1]} 9... Nc6 {[%clk 0:02:56.6]} 10.
Bb3 {[%clk 0:03:00.1]} 10... Na5 {[%clk 0:02:53.4]} 11. Bg5 {[%clk 0:02:59.9]}
11... Nxb3 {[%clk 0:02:50.9]} 12. axb3 {[%clk 0:02:59.5]} 12... Be6 {[%clk
0:02:50.7]} 13. Bxf6 {[%clk 0:02:59.5]} 13... Bxf6 {[%clk 0:02:51.1]} 14. Qd3
{[%clk 0:02:59.6]} 14... Qc7 {[%clk 0:02:47.4]} 15. Nd5 {[%clk 0:03:00]} 15...
Bxd5 {[%clk 0:02:47.2]} 16. Qxd5 {[%clk 0:02:58.3]} 16... Qxc2 {[%clk
0:02:47.2]} 17. Rab1 {[%clk 0:02:51.8]} 17... Qc6 {[%clk 0:02:43.5]} 18. Rfd1
{[%clk 0:02:50.2]} 18... Rfd8 {[%clk 0:02:39]} 19. h3 {[%clk 0:02:48.2]} 19...
Rac8 {[%clk 0:02:35.6]} 20. Ne1 {[%clk 0:02:43.8]} 20... h6 {[%clk 0:02:30.1]}
21. Rd3 {[%clk 0:02:40.8]} 21... g6 {[%clk 0:02:24.3]} 22. Rbd1 {[%clk
0:02:40.2]} 22... Qb6 {[%clk 0:02:14.8]} 23. Rf3 {[%clk 0:02:29.4]} 23... Kg7
{[%clk 0:02:13.9]} 24. Nd3 {[%clk 0:02:22.4]} 24... Rc2 {[%clk 0:02:06.8]} 25.
b4 {[%clk 0:01:51.2]} 25... Rdc8 {[%clk 0:01:56.1]} 26. g3 {[%clk 0:01:46.8]}
26... R2c4 {[%clk 0:01:33.3]} 27. Ne1 {[%clk 0:01:37.7]} 27... Qxb4 {[%clk
0:01:14.9]} 28. Qxd6 {[%clk 0:01:36]} 28... Qxd6 {[%clk 0:01:15.3]} 29. Rxd6
{[%clk 0:01:35.6]} 29... R8c6 {[%clk 0:01:15.3]} 30. Rfxf6 {[%clk 0:01:34.4]}
30... Rxe4 {[%clk 0:01:08.6]} 31. Nd3 {[%clk 0:01:26]} 31... Rd4 {[%clk
0:00:49.3]} 32. Rxd4 {[%clk 0:01:14.4]} 32... Kxf6 {[%clk 0:00:49.1]} 33. Rd5
{[%clk 0:01:09]} 33... Re6 {[%clk 0:00:42.1]} 34. Nc5 {[%clk 0:01:08.3]} 34...
Re7 {[%clk 0:00:41.8]} 35. Ne4+ {[%clk 0:01:03.7]} 35... Kf5 {[%clk 0:00:36.5]}
36. f3 {[%clk 0:01:01.7]} 36... Rc7 {[%clk 0:00:36.2]} 37. Rd6 {[%clk
0:01:00.4]} 37... Rc6 {[%clk 0:00:28.6]} 38. Kf2 {[%clk 0:00:56]} 38... a5
{[%clk 0:00:20.3]} 39. Ke3 {[%clk 0:00:53.6]} 39... Rxd6 {[%clk 0:00:12.6]} 40.
Nxd6+ {[%clk 0:00:54.2]} 40... Ke6 {[%clk 0:00:13.2]} 41. Nxb7 {[%clk
0:00:54.5]} 41... a4 {[%clk 0:00:13.8]} 42. Nc5+ {[%clk 0:00:54.5]} 42... Kd5
{[%clk 0:00:14.7]} 43. Nxa4 {[%clk 0:00:54.7]} 43... f5 {[%clk 0:00:15.6]} 44.
Nc3+ {[%clk 0:00:54.8]} 44... Ke6 {[%clk 0:00:15.5]} 45. b4 {[%clk 0:00:54.2]}
45... g5 {[%clk 0:00:16.4]} 46. b5 {[%clk 0:00:53.8]} 46... f4+ {[%clk
0:00:17.3]} 47. gxf4 {[%clk 0:00:53.5]} 47... exf4+ {[%clk 0:00:17.7]} 48. Ke4
{[%clk 0:00:54.1]} 48... h5 {[%clk 0:00:18]} 49. Ne2 {[%clk 0:00:53.8]} 49... g4
{[%clk 0:00:18.9]} 50. hxg4 {[%clk 0:00:53.6]} 50... hxg4 {[%clk 0:00:19.8]} 51.
Nxf4+ {[%clk 0:00:53.8]} 51... Kd6 {[%clk 0:00:20.7]} 52. fxg4 {[%clk
0:00:54.1]} 52... Kc5 {[%clk 0:00:21.6]} 53. g5 {[%clk 0:00:54.5]} 53... Kb6
{[%clk 0:00:22.4]} 54. g6 {[%clk 0:00:55]} 54... Ka5 {[%clk 0:00:23.3]} 55. g7
{[%clk 0:00:55.5]} 55... Kb6 {[%clk 0:00:23.8]} 56. g8=Q {[%clk 0:00:56.4]}
56... Kc5 {[%clk 0:00:24.7]} 57. Qd5+ {[%clk 0:00:56.4]} 57... Kb6 {[%clk
0:00:25.6]} 58. Qc6+ {[%clk 0:00:56.5]} 58... Ka5 {[%clk 0:00:26.5]} 59. b6
{[%clk 0:00:56.5]} 59... Kb4 {[%clk 0:00:26]} 60. b7 {[%clk 0:00:57]} 60... Ka5
{[%clk 0:00:26.9]} 61. Qc8 {[%clk 0:00:50.4]} 61... Ka6 {[%clk 0:00:24]} 62.
b8=Q+ {[%clk 0:00:49.4]} 62... Ka5 {[%clk 0:00:24.9]} 63. Qc5+ {[%clk
0:00:48.2]} 63... Ka4 {[%clk 0:00:25.8]} 64. Qcb4# {[%clk 0:00:48.5]} 1-0

[Event "*** Titled Tuesday Blitz"]
[Site "Chess.com"]
[Date "2020.12.29"]
[Round "4"]
[White "FLamps8"]
[Black "jcibarra"]
[Result "0-1"]
[WhiteElo "2542"]
[BlackElo "2870"]
[TimeControl "180+1"]
[EndTime "10:38:51 PST"]
[Termination "jcibarra won by resignation"]

1. Nf3 {[%clk 0:03:00.6]} 1... Nf6 {[%clk 0:02:59.6]} 2. c4 {[%clk 0:03:01]}
2... d6 {[%clk 0:02:59.7]} 3. g3 {[%clk 0:03:00.7]} 3... g6 {[%clk 0:03:00.2]}
4. Bg2 {[%clk 0:03:01.3]} 4... Bg7 {[%clk 0:03:00.8]} 5. d4 {[%clk 0:03:02]}
5... O-O {[%clk 0:03:01.4]} 6. O-O {[%clk 0:03:02.6]} 6... Bf5 {[%clk
0:03:01.7]} 7. Nc3 {[%clk 0:03:01.2]} 7... Ne4 {[%clk 0:03:01.9]} 8. Bd2 {[%clk
0:02:56.3]} 8... c5 {[%clk 0:03:00.7]} 9. Nxe4 {[%clk 0:02:50.8]} 9... Bxe4
{[%clk 0:03:00.7]} 10. Bc3 {[%clk 0:02:51.4]} 10... Nc6 {[%clk 0:02:58.1]} 11.
e3 {[%clk 0:02:45]} 11... Qb6 {[%clk 0:02:57.5]} 12. dxc5 {[%clk 0:02:40.5]}
12... dxc5 {[%clk 0:02:55.4]} 13. Bxg7 {[%clk 0:02:39.7]} 13... Kxg7 {[%clk
0:02:56.3]} 14. Qc1 {[%clk 0:02:24]} 14... Qa5 {[%clk 0:02:44.7]} 15. Nd2 {[%clk
0:02:22.2]} 15... Bxg2 {[%clk 0:02:42.7]} 16. Kxg2 {[%clk 0:02:23.1]} 16... Rfd8
{[%clk 0:02:41.7]} 17. Nb3 {[%clk 0:02:22.2]} 17... Qb4 {[%clk 0:02:41.9]} 18.
Rd1 {[%clk 0:02:22.1]} 18... Rxd1 {[%clk 0:02:39.3]} 19. Qxd1 {[%clk 0:02:23]}
19... Qxc4 {[%clk 0:02:38.9]} 20. Qd7 {[%clk 0:02:08.4]} 20... Qe4+ {[%clk
0:02:31.8]} 21. Kg1 {[%clk 0:02:00.1]} 21... Ne5 {[%clk 0:02:06.6]} 22. Nxc5
{[%clk 0:01:58.4]} 22... Nf3+ {[%clk 0:01:46.9]} 23. Kh1 {[%clk 0:01:33.2]}
23... Qc2 {[%clk 0:01:39]} 24. Nd3 {[%clk 0:01:18.1]} 24... Qe2 {[%clk
0:00:48.5]} 25. Kg2 {[%clk 0:01:02.2]} 25... Nd2 {[%clk 0:00:42.9]} 26. Qxb7
{[%clk 0:00:23.1]} 26... Rd8 {[%clk 0:00:41.5]} 27. Nf4 {[%clk 0:00:23.5]} 27...
Qc4 {[%clk 0:00:41.6]} 28. Rd1 {[%clk 0:00:11.7]} 28... e5 {[%clk 0:00:41.3]}
29. b3 {[%clk 0:00:12.1]} 29... Qc2 {[%clk 0:00:27.2]} 30. Ne6+ {[%clk
0:00:11.5]} 30... Kh6 {[%clk 0:00:27.6]} 31. Nxd8 {[%clk 0:00:10.7]} 31... Qxd1
{[%clk 0:00:27.4]} 32. Nxf7+ {[%clk 0:00:11.2]} 32... Kh5 {[%clk 0:00:26.1]} 33.
g4+ {[%clk 0:00:11.1]} 33... Qxg4+ {[%clk 0:00:25.5]} 34. Kh1 {[%clk 0:00:08.6]}
34... Nf3 {[%clk 0:00:17.3]} 0-1

[Event "*** Titled Tuesday Blitz"]
[Site "Chess.com"]
[Date "2020.12.29"]
[Round "4"]
[White "PenguinPacks"]
[Black "Tssunami"]
[Result "1-0"]
[WhiteElo "2467"]
[BlackElo "2308"]
[TimeControl "180+1"]
[EndTime "10:38:56 PST"]
[Termination "PenguinPacks won on time"]

1. e4 {[%clk 0:03:00.9]} 1... e6 {[%clk 0:02:56.4]} 2. d4 {[%clk 0:03:00.3]}
2... d5 {[%clk 0:02:53.9]} 3. Nc3 {[%clk 0:02:53.1]} 3... Nf6 {[%clk 0:02:48.2]}
4. e5 {[%clk 0:02:53.2]} 4... Nfd7 {[%clk 0:02:46.6]} 5. f4 {[%clk 0:02:51.5]}
5... c5 {[%clk 0:02:43.5]} 6. Nf3 {[%clk 0:02:45.1]} 6... Nc6 {[%clk 0:02:43]}
7. Be3 {[%clk 0:02:44.2]} 7... Be7 {[%clk 0:02:40.1]} 8. Qd2 {[%clk 0:02:40.5]}
8... a6 {[%clk 0:02:35.5]} 9. a3 {[%clk 0:02:38.6]} 9... b5 {[%clk 0:02:27.2]}
10. Ne2 {[%clk 0:02:36.7]} 10... b4 {[%clk 0:02:02.9]} 11. axb4 {[%clk
0:02:21.2]} 11... Nxb4 {[%clk 0:01:38.3]} 12. c3 {[%clk 0:02:15.8]} 12... Nc6
{[%clk 0:01:38.2]} 13. Ng3 {[%clk 0:02:03.5]} 13... a5 {[%clk 0:01:22.7]} 14. f5
{[%clk 0:01:44.9]} 14... cxd4 {[%clk 0:00:50.4]} 15. Nxd4 {[%clk 0:01:42.1]}
15... Ndxe5 {[%clk 0:00:46.8]} 16. Bb5 {[%clk 0:00:33.8]} 16... Bd7 {[%clk
0:00:38.3]} 17. fxe6 {[%clk 0:00:30.8]} 17... fxe6 {[%clk 0:00:34.6]} 18. O-O
{[%clk 0:00:29.4]} 18... Bf6 {[%clk 0:00:20.9]} 19. Nh5 {[%clk 0:00:08.8]} 19...
O-O {[%clk 0:00:19.9]} 20. Nf4 {[%clk 0:00:05.1]} 20... Nxd4 {[%clk 0:00:18.8]}
21. Bxd7 {[%clk 0:00:04.8]} 21... Qxd7 {[%clk 0:00:11.4]} 22. Bxd4 {[%clk
0:00:04.4]} 22... Nc4 {[%clk 0:00:09.4]} 23. Qe2 {[%clk 0:00:03.9]} 23... Bxd4+
{[%clk 0:00:05.2]} 24. cxd4 {[%clk 0:00:04.8]} 24... Rf6 {[%clk 0:00:05.3]} 25.
g3 {[%clk 0:00:04.6]} 25... Raf8 {[%clk 0:00:05]} 26. b3 {[%clk 0:00:05.1]}
26... Nd6 {[%clk 0:00:03.5]} 27. Rxa5 {[%clk 0:00:05.6]} 27... Ne4 {[%clk
0:00:03.5]} 28. Rc1 {[%clk 0:00:04.8]} 28... g5 {[%clk 0:00:03.1]} 29. Qg4
{[%clk 0:00:04.2]} 29... Kh8 {[%clk 0:00:02.4]} 30. Rxd5 {[%clk 0:00:03.9]}
30... Qf7 {[%clk 0:00:01.3]} 31. Rxg5 {[%clk 0:00:02.9]} 1-0